bitfinex-derivatives/quotes_ETHF0:USTF0_20260125
["timestamp","ask_amount","ask_price","bid_price","bid_amount"]
[1769324909265,0.7849305,2943.5,2942.1,4.20329928]
[1769324909565,4.42987921,2943.5,2942.1,4.20329928]
[1769324914962,0.7849305,2943.3,2942.1,0.78790445]
[1769324915163,0.7849305,2942.9,2942.1,0.00297395]
[1769324915464,3.55977683,2942.8,2941.4,10.80851093]
[1769324915670,0.7849305,2942.3,2941.1,13.57143569]
[1769324915968,3.55977683,2942.5,2941.2,0.7849305]
[1769324915969,4.34470733,2942.5,2941.2,0.7849305]
[1769324916673,4.3477593,2942.5,2941.2,0.78747223]
[1769324918168,3.5628288,2942.5,2941.2,0.78747223]
[1769324918867,4.3477593,2942.5,2941.2,0.78747223]
[1769324926777,4.34470733,2942.3,2941.2,0.00254173]
[1769324936087,3.55977683,2942.3,2941.2,0.78747223]
[1769324936987,3.55977683,2942.3,2941.2,0.00254173]
[1769324960423,0.00305197,2942.5,2941.2,0.00254173]
[1769324960618,4.10949647,2942.4,2941.2,0.00254173]
[1769324960820,3.77296992,2942.5,2941.2,0.00254173]
[1769324961116,7.87941449,2942.4,2941.2,0.00254173]
[1769324961318,3.76991795,2942.4,2941.2,0.00254173]
[1769324966232,0.00305197,2942.5,2941.2,3.68362735]
[1769324972428,0.00305197,2942.5,2941.2,3.85387735]
[1769324989141,3.70360917,2942.5,2941.2,3.85387735]
[1769324994941,0.00305197,2942.5,2941.2,3.85387735]
[1769324998841,0.00305197,2942.5,2941.6,0.78567722]
[1769325000949,0.00305197,2942.5,2941.6,4.54172537]
[1769325001149,0.00305197,2942.5,2941.8,0.78567722]
[1769325001850,3.7005572,2943.3,2942.2,0.78567722]
[1769325002039,4.09334441,2943.2,2942.2,0.78567722]
[1769325002244,2.78167722,2943.6,2942.2,4.54172537]
[1769325002546,4.09245119,2943.5,2942.2,4.54172537]
[1769325002853,4.87812841,2943.4,2942.2,3.75604815]
[1769325003044,4.09245119,2943.3,2942.2,3.75604815]
[1769325003246,4.09245119,2943.2,2942.2,3.75604815]
[1769325003446,0.78567722,2943.4,2942.2,3.75604815]
[1769325003642,4.09144791,2943.3,2942.2,3.75604815]
[1769325003848,4.09144791,2943.2,2942.2,3.75604815]
[1769325004042,0.78567722,2943.4,2942.2,3.75604815]
[1769325004352,4.09144668,2943.3,2942.2,3.75604815]
[1769325004554,0.78567722,2943.4,2942.2,3.75604815]
[1769325004854,4.09067024,2943.3,2942.2,3.75604815]
[1769325005054,4.23016763,2943.4,2942.2,3.75604815]
[1769325005254,4.09067024,2943.3,2942.0,0.78567722]
[1769325005560,4.23016763,2943.4,2942.0,0.78567722]
[1769325005854,0.78567722,2943.2,2941.9,3.47406719]
[1769325006649,3.44449041,2943.4,2941.9,3.47406719]
[1769325006854,4.87492406,2943.3,2941.9,3.47406719]
[1769325007053,4.23016763,2943.3,2941.9,3.47406719]
[1769325009049,0.78567722,2943.1,2941.9,3.47406719]
[1769325009451,0.78567722,2942.9,2941.7,0.17023]
[1769325009657,0.00366177,2943.5,2941.5,3.47406719]
[1769325009658,4.23016763,2942.7,2941.5,3.47406719]
[1769325009955,4.23016763,2942.7,2941.2,6.31428614]
[1769325010155,0.78567722,2942.5,2941.2,4.26228614]
[1769325010758,4.23016763,2942.7,2941.2,4.26228614]
[1769325015858,4.23016763,2942.7,2941.4,0.78567722]
[1769325032279,3.44449041,2942.7,2941.4,4.225826]
[1769325032485,3.44449041,2942.7,2941.6,0.78567722]
[1769325036090,0.78567722,2942.9,2941.6,0.78567722]
[1769325036290,4.36717624,2943.1,2941.8,0.78567722]
[1769325036590,4.36717624,2943.1,2941.8,4.26195115]
[1769325037193,3.58149902,2943.1,2942.0,0.78567722]
[1769325037786,4.37083801,2943.5,2942.2,0.78567722]
[1769325037987,4.08883656,2943.4,2942.2,0.78567722]
[1769325038186,6.36683801,2943.5,2942.2,0.78567722]
[1769325038493,6.36683801,2943.5,2942.0,0.78567722]
[1769325038494,7.66945144,2943.4,2942.0,0.78567722]
[1769325038692,0.78567722,2943.3,2942.0,0.78567722]
[1769325041899,4.36717624,2943.1,2941.8,4.26195115]
[1769325042193,4.36717624,2943.1,2941.8,0.78567722]
[1769325051702,4.36717624,2943.1,2941.7,0.17023]
[1769325061008,3.58149902,2943.1,2941.7,0.17023]
[1769325063906,3.54280848,2943.5,2941.9,3.69605752]
[1769325064303,0.00509658,2942.7,2942.1,0.00509658]
[1769325064507,3.54280848,2943.5,2942.1,3.7011541]
[1769325064808,4.0926277,2943.4,2942.1,3.7011541]
[1769325065009,3.54280848,2943.5,2942.1,3.7011541]
[1769325065209,4.09262412,2943.4,2942.1,3.7011541]
[1769325065408,3.54280848,2943.5,2942.1,3.7011541]
[1769325065602,4.09326892,2943.4,2942.1,3.7011541]
[1769325065799,3.54280848,2943.5,2942.1,3.7011541]
[1769325066010,4.09329204,2943.4,2942.1,3.7011541]
[1769325066210,3.54280848,2943.5,2942.1,3.7011541]
[1769325066412,4.09394904,2943.4,2942.1,3.7011541]
[1769325066608,3.54280848,2943.5,2942.1,3.7011541]
[1769325066812,4.09394918,2943.4,2942.1,3.7011541]
[1769325067013,3.54280848,2943.5,2942.1,3.7011541]
[1769325067311,4.09394905,2943.4,2942.1,3.7011541]
[1769325067511,3.54280848,2943.5,2942.1,3.7011541]
[1769325067711,4.09408911,2943.4,2942.1,3.7011541]
[1769325067911,3.54280848,2943.5,2942.1,3.7011541]
[1769325068108,4.09408817,2943.4,2942.1,3.7011541]
[1769325068316,3.54280848,2943.5,2942.1,3.7011541]
[1769325068505,4.09396504,2943.4,2942.1,3.7011541]
[1769325068708,3.54280848,2943.5,2942.1,3.7011541]
[1769325068908,4.09396465,2943.4,2942.1,3.7011541]
[1769325069109,3.54280848,2943.5,2942.1,3.7011541]
[1769325069408,4.0938472,2943.4,2942.1,3.7011541]
[1769325069603,3.54280848,2943.5,2942.1,3.7011541]
[1769325069809,4.0938472,2943.4,2942.1,3.7011541]
[1769325070015,3.54280848,2943.5,2942.1,3.7011541]
[1769325070215,4.09384684,2943.4,2942.1,3.7011541]
[1769325070516,3.54280848,2943.5,2942.1,3.7011541]
[1769325070715,4.09373588,2943.4,2942.1,3.7011541]
[1769325070910,3.54280848,2943.5,2942.1,3.7011541]
[1769325071112,4.09373591,2943.4,2942.1,3.7011541]
[1769325071314,3.54280848,2943.5,2942.1,3.7011541]
[1769325071616,4.09363503,2943.4,2942.1,3.7011541]
[1769325071817,3.54280848,2943.5,2942.1,3.7011541]
[1769325072020,4.09363467,2943.4,2942.1,3.7011541]
[1769325072212,3.54280848,2943.5,2942.1,3.7011541]
[1769325072409,4.09352642,2943.4,2942.1,3.7011541]
[1769325072609,3.54280848,2943.5,2942.1,3.7011541]
[1769325072806,4.09352642,2943.4,2942.1,3.7011541]
[1769325073016,3.54280848,2943.5,2942.1,3.7011541]
[1769325073219,4.09352642,2943.4,2942.1,3.7011541]
[1769325073417,3.54280848,2943.5,2942.1,3.7011541]
[1769325073717,4.0934256,2943.4,2942.1,3.7011541]
[1769325073907,3.54280848,2943.5,2942.1,3.7011541]
[1769325074111,4.09343165,2943.4,2942.1,3.7011541]
[1769325074313,3.54280848,2943.5,2942.1,3.7011541]
[1769325074515,4.0933412,2943.4,2942.1,3.7011541]
[1769325074713,3.54280848,2943.5,2942.1,3.7011541]
[1769325074913,4.09332923,2943.4,2942.1,3.7011541]
[1769325075114,3.54280848,2943.5,2942.1,3.7011541]
[1769325075315,4.09322526,2943.4,2942.1,3.7011541]
[1769325075615,3.54280848,2943.5,2942.1,3.7011541]
[1769325075816,4.09322539,2943.4,2942.1,3.7011541]
[1769325076016,3.54280848,2943.5,2942.1,3.7011541]
[1769325076620,5.53780848,2943.5,2942.1,3.7011541]
[1769325085231,4.08404536,2943.4,2942.1,3.7011541]
[1769325085432,5.53780848,2943.5,2942.1,3.7011541]
[1769325085732,4.08404549,2943.4,2942.1,3.7011541]
[1769325086029,5.53780848,2943.5,2942.1,3.7011541]
[1769325086232,4.08404562,2943.4,2942.1,3.7011541]
[1769325086437,5.53780848,2943.5,2942.1,3.7011541]
[1769325086637,4.0842396,2943.4,2942.1,3.7011541]
[1769325086838,5.53780848,2943.5,2942.1,3.7011541]
[1769325087041,4.08423947,2943.4,2942.1,3.7011541]
[1769325087238,5.53780848,2943.5,2942.1,3.7011541]
[1769325087439,4.08447228,2943.4,2942.1,3.7011541]
[1769325087636,5.53780848,2943.5,2942.1,3.7011541]
[1769325087940,4.08447228,2943.4,2942.1,3.7011541]
[1769325088141,5.53780848,2943.5,2942.1,3.7011541]
[1769325088336,4.08475417,2943.4,2942.1,3.7011541]
[1769325088635,5.53780848,2943.5,2942.1,3.7011541]
[1769325088842,4.08474211,2943.4,2942.1,3.7011541]
[1769325089040,5.53780848,2943.5,2942.1,3.7011541]
[1769325089241,4.08474211,2943.4,2942.1,3.7011541]
[1769325089541,5.53780848,2943.5,2942.1,3.7011541]
[1769325089741,4.08508693,2943.4,2942.1,3.7011541]
[1769325089942,5.53780848,2943.5,2942.1,3.7011541]
[1769325090141,4.08508693,2943.4,2942.1,3.7011541]
[1769325090330,5.53780848,2943.5,2942.1,3.7011541]
[1769325090537,4.08512374,2943.4,2942.1,3.7011541]
[1769325090739,5.53780848,2943.5,2942.1,3.7011541]
[1769325090938,4.08509961,2943.4,2942.1,3.7011541]
[1769325091239,5.53780848,2943.5,2942.1,3.7011541]
[1769325091443,4.08553225,2943.4,2942.1,3.7011541]
[1769325091639,5.53780848,2943.5,2942.1,3.7011541]
[1769325091839,4.08553225,2943.4,2942.1,3.7011541]
[1769325092041,5.53780848,2943.5,2942.1,3.7011541]
[1769325092241,4.08553225,2943.4,2942.1,3.7011541]
[1769325092441,5.53780848,2943.5,2942.1,3.7011541]
[1769325092643,4.08613395,2943.4,2942.1,3.7011541]
[1769325092944,5.53780848,2943.5,2942.1,3.7011541]
[1769325093144,4.08613408,2943.4,2942.1,3.7011541]
[1769325093341,5.53780848,2943.5,2942.1,3.7011541]
[1769325093547,4.08743957,2943.4,2942.1,3.7011541]
[1769325093845,5.53780848,2943.5,2942.1,3.7011541]
[1769325094344,3.54280848,2943.5,2942.1,3.7011541]
[1769325094545,0.00366177,2943.5,2942.1,3.7011541]
[1769325100354,0.00366177,2943.5,2942.5,3.57726574]
[1769325100943,0.00366177,2943.5,2942.4,0.17018]
[1769325111455,0.00366177,2943.5,2942.1,5.57736232]
[1769325115974,0.00366177,2943.5,2942.2,3.57726574]
[1769325122869,0.00366177,2943.5,2942.5,0.78520551]
[1769325124063,0.00366177,2943.5,2942.5,4.35204716]
[1769325124269,0.00366177,2943.5,2942.7,4.35204716]
[1769325125965,0.00366177,2943.5,2942.7,3.56684165]
[1769325131270,0.00366177,2943.5,2942.5,0.78520551]
[1769325131673,0.00366177,2943.5,2942.5,4.35204716]
[1769325167506,0.78886728,2943.5,2942.5,3.56684165]
[1769325168104,0.78886728,2943.5,2942.1,6.54737953]
[1769325168305,0.78886728,2943.5,2942.2,3.76207744]
[1769325180610,0.78520551,2943.3,2942.2,3.76207744]
[1769325180815,0.78520551,2943.1,2942.2,3.76207744]
[1769325181016,0.78520551,2942.7,2942.1,0.00509658]
[1769325181312,1.995,2943.4,2942.1,0.00509658]
[1769325181313,0.78520551,2942.9,2942.1,0.00509658]
[1769325182015,0.78520551,2943.1,2942.1,0.00509658]
[1769325185118,3.59707713,2943.3,2942.1,0.00509658]
[1769325205431,4.11403848,2943.2,2942.1,0.00509658]
[1769325205636,3.59707713,2943.3,2942.1,0.00509658]
[1769325205837,4.11403848,2943.2,2942.1,0.00509658]
[1769325206036,3.59707713,2943.3,2942.1,0.00509658]
[1769325206330,4.11403848,2943.2,2942.1,0.00509658]
[1769325206537,3.59707713,2943.3,2942.1,0.00509658]
[1769325206737,4.11464581,2943.2,2942.1,0.00509658]
[1769325206936,3.59707713,2943.3,2942.1,0.00509658]
[1769325207138,4.11464555,2943.2,2942.1,0.00509658]
[1769325207339,3.59707713,2943.3,2942.1,0.00509658]
[1769325207536,4.11543807,2943.2,2942.1,0.00509658]
[1769325207734,3.59707713,2943.3,2942.1,0.00509658]
[1769325207930,4.11543807,2943.2,2942.1,0.00509658]
[1769325208136,3.59707713,2943.3,2942.1,0.00509658]
[1769325208335,4.11549434,2943.2,2942.1,0.00509658]
[1769325208533,3.59707713,2943.3,2942.1,0.00509658]
[1769325208736,4.11652333,2943.2,2942.1,0.00509658]
[1769325208939,3.59707713,2943.3,2942.1,0.00509658]
[1769325209142,4.11652333,2943.2,2942.1,0.00509658]
[1769325209336,3.71116095,2943.2,2942.1,0.00509658]
[1769325224161,4.11913007,2943.1,2942.1,0.00509658]
[1769325224361,3.71116095,2943.2,2942.1,0.00509658]
[1769325224555,4.11913007,2943.1,2942.1,0.00509658]
[1769325224754,3.71116095,2943.2,2942.1,0.00509658]
[1769325224954,4.11913007,2943.1,2942.1,0.00509658]
[1769325225161,3.71116095,2943.2,2942.1,0.00509658]
[1769325225460,4.11927457,2943.1,2942.1,0.00509658]
[1769325225662,3.71116095,2943.2,2942.1,0.00509658]
[1769325225860,4.11927457,2943.1,2942.1,0.00509658]
[1769325226061,3.71116095,2943.2,2942.1,0.00509658]
[1769325226258,4.11951013,2943.1,2942.1,0.00509658]
[1769325226457,3.71116095,2943.2,2942.1,0.00509658]
[1769325226659,4.12265341,2943.1,2942.1,0.00509658]
[1769325226859,3.71116095,2943.2,2942.1,0.00509658]
[1769325227063,4.12265354,2943.1,2942.1,0.00509658]
[1769325227259,3.71116095,2943.2,2942.1,0.00509658]
[1769325227460,4.12266234,2943.1,2942.1,0.00509658]
[1769325227658,3.71116095,2943.2,2942.1,0.00509658]
[1769325227858,4.12266234,2943.1,2942.1,0.00509658]
[1769325228060,3.71116095,2943.2,2942.1,0.00509658]
[1769325228254,4.12267464,2943.1,2942.1,0.00509658]
[1769325228461,3.71116095,2943.2,2942.1,0.00509658]
[1769325228663,1.995,2943.4,2942.1,0.00509658]
[1769325228664,3.74256554,2943.0,2942.1,0.00509658]
[1769325238972,3.74256554,2943.0,2941.5,0.17024]
[1769325244893,0.78579361,2942.7,2941.5,0.17024]
[1769325254089,4.32405817,2942.7,2941.5,0.17024]
[1769325254285,0.78579361,2942.5,2941.2,0.78833534]
[1769325255497,4.32405817,2942.5,2941.2,0.78833534]
[1769325255694,0.78579361,2942.3,2941.2,0.00254173]
[1769325256088,0.78579361,2941.6,2940.7,8.82716686]
[1769325256294,4.32405817,2942.0,2940.6,0.78579361]
[1769325257299,4.32405817,2942.0,2940.6,0.78862953]
[1769325258698,0.78579361,2941.8,2940.6,0.78862953]
[1769325275708,4.41911872,2941.8,2940.6,0.78862953]
[1769325277011,4.41911872,2941.8,2940.6,0.00283592]
[1769325277399,4.41911872,2941.6,2940.6,0.00283592]
[1769325277910,0.78579361,2941.2,2940.6,0.00283592]
[1769325278106,0.78579361,2941.2,2940.1,3.56213167]
[1769325279013,0.78900534,2941.2,2940.1,3.56520339]
[1769325280615,4.42233045,2941.2,2940.1,0.00307172]
[1769325281014,0.78579361,2941.0,2940.1,0.00307172]
[1769325281413,4.41911872,2941.0,2940.1,0.00307172]
[1769325284717,0.78579361,2940.8,2940.1,0.00307172]
[1769325285217,4.41911872,2941.0,2940.1,0.00307172]
[1769325286324,3.63332511,2941.0,2940.1,0.00307172]
[1769325287923,4.41911872,2941.0,2940.1,0.00307172]
[1769325290136,0.78579361,2941.0,2940.1,0.00307172]
[1769325290325,2.78600534,2941.2,2940.1,0.00307172]
[1769325290628,0.00321173,2941.2,2940.1,0.78886533]
[1769325290826,0.00321173,2941.2,2940.1,0.00307172]
[1769325299634,0.78900534,2941.2,2940.1,0.00307172]
[1769325301728,0.00321173,2941.2,2940.1,4.350997]
[1769325301930,0.00321173,2941.2,2940.3,0.78579361]
[1769325303538,0.00321173,2941.2,2940.1,4.350997]
[1769325306934,0.00321173,2941.2,2940.1,3.56520339]
[1769325307633,0.00321173,2941.2,2940.3,3.43255003]
[1769325326556,3.57424208,2941.9,2940.3,3.43255003]
[1769325326744,4.14163554,2941.8,2940.3,3.43255003]
[1769325326949,3.57424208,2941.9,2940.3,3.43255003]
[1769325327150,4.14163409,2941.8,2940.3,3.43255003]
[1769325327347,3.57424208,2941.9,2940.3,3.43255003]
[1769325327545,4.14180801,2941.8,2940.3,3.43255003]
[1769325327844,3.57723328,2941.9,2940.3,3.43255003]
[1769325328655,0.0029912,2941.9,2940.3,3.43255003]
[1769325328853,0.0029912,2941.9,2940.3,3.60286003]
[1769325329058,0.0029912,2941.9,2940.7,3.58433839]
[1769325332858,3.76968718,2941.9,2940.3,3.70645795]
[1769325339263,3.76968718,2941.9,2940.3,3.53614795]
[1769325348269,7.90879697,2941.8,2940.3,3.53614795]
[1769325348567,3.76669598,2941.8,2940.3,3.53614795]
[1769325359574,0.0029912,2941.9,2940.3,3.53614795]
[1769325359784,4.14355978,2941.8,2940.3,3.53614795]
[1769325359987,0.0029912,2941.9,2940.3,3.53614795]
[1769325360174,7.91025573,2941.8,2940.3,3.53614795]
[1769325360375,3.76669598,2941.8,2940.3,3.53614795]
[1769325361389,4.14435037,2941.7,2940.3,3.53614795]
[1769325361687,3.76669598,2941.8,2940.3,3.53614795]
[1769325361882,4.14433558,2941.7,2940.3,3.53614795]
[1769325362178,3.76669598,2941.8,2940.3,3.53614795]
[1769325362383,4.14492723,2941.7,2940.3,3.53614795]
[1769325362583,3.76669598,2941.8,2940.3,3.53614795]
[1769325362787,4.14490844,2941.7,2940.3,3.53614795]
[1769325362987,3.76669598,2941.8,2940.3,3.53614795]
[1769325363281,4.14490842,2941.7,2940.3,3.53614795]
[1769325363482,3.76669598,2941.8,2940.3,3.53614795]
[1769325363683,4.14511756,2941.7,2940.3,3.53614795]
[1769325363891,3.76669598,2941.8,2940.3,3.53614795]
[1769325364093,4.14511757,2941.7,2940.3,3.53614795]
[1769325364293,3.76669598,2941.8,2940.3,3.53614795]
[1769325364494,4.14518572,2941.7,2940.3,3.53614795]
[1769325364694,3.76669598,2941.8,2940.3,3.53614795]
[1769325364895,4.14518572,2941.7,2940.3,3.53614795]
[1769325365195,3.76669598,2941.8,2940.3,3.53614795]
[1769325365396,4.14527535,2941.7,2940.3,3.53614795]
[1769325365599,3.76669598,2941.8,2940.3,3.53614795]
[1769325365796,4.14527535,2941.7,2940.3,3.53614795]
[1769325365997,3.76669598,2941.8,2940.3,3.53614795]
[1769325366296,4.14527535,2941.7,2940.3,3.53614795]
[1769325366497,3.76669598,2941.8,2940.3,3.53614795]
[1769325366691,0.0029912,2941.9,2940.3,3.53614795]
[1769325366692,4.14539291,2941.7,2940.3,3.53614795]
[1769325366897,1.9989912,2941.9,2940.3,3.53614795]
[1769325367197,4.145365,2941.8,2940.3,3.53614795]
[1769325367397,1.9989912,2941.9,2940.3,3.53614795]
[1769325367600,4.14553046,2941.8,2940.3,3.53614795]
[1769325367794,1.9989912,2941.9,2940.3,3.53614795]
[1769325367993,4.14553002,2941.8,2940.3,3.53614795]
[1769325368195,1.9989912,2941.9,2940.3,3.53614795]
[1769325368394,4.14572333,2941.8,2940.3,3.53614795]
[1769325368598,1.9989912,2941.9,2940.3,3.53614795]
[1769325368901,4.93198671,2941.8,2940.4,4.49291455]
[1769325369101,0.7862651,2941.8,2940.4,4.49291455]
[1769325384111,0.0029912,2941.9,2940.9,4.48849588]
[1769325385611,0.0029912,2941.9,2941.1,4.48849588]
[1769325389013,0.7862651,2942.4,2941.1,4.48849588]
[1769325390008,0.79026104,2942.4,2941.1,4.48849588]
[1769325391714,0.7862651,2942.2,2941.1,3.70223078]
[1769325393212,0.79026104,2942.4,2941.1,4.48849588]
[1769325404020,0.00399594,2942.4,2941.3,0.7862651]
[1769325404224,0.00399594,2942.4,2941.3,4.44999358]
[1769325420651,0.79026104,2942.4,2941.3,3.66372848]
[1769325420942,0.7862651,2941.8,2940.5,0.7862651]
[1769325421146,0.7862651,2941.6,2940.5,3.66372848]
[1769325421351,0.7862651,2941.8,2940.5,4.44999358]
[1769325422151,3.72009687,2942.1,2940.9,4.44999358]
[1769325423154,0.7862651,2942.0,2940.9,4.44999358]
[1769325424252,0.7862651,2942.0,2940.9,3.66372848]
[1769325424459,0.7862651,2941.8,2940.7,0.7862651]
[1769325424751,0.7862651,2941.8,2940.5,4.27447686]
[1769325426454,0.7862651,2942.0,2940.5,4.27447686]
[1769325426652,0.7862651,2942.0,2940.7,0.7862651]
[1769325428854,3.72009687,2942.1,2940.5,3.48821176]
[1769325449470,4.17857551,2942.0,2940.5,3.48821176]
[1769325449670,3.72009687,2942.1,2940.5,3.48821176]
[1769325449862,4.17857689,2942.0,2940.5,3.48821176]
[1769325450063,3.72009687,2942.1,2940.5,3.48821176]
[1769325450264,3.45298704,2941.9,2940.5,3.48821176]
[1769325456867,1.996,2942.2,2940.5,3.48821176]
[1769325457075,6.17441524,2942.1,2940.5,3.48821176]
[1769325457274,4.17841524,2942.0,2940.5,3.48821176]
[1769325458978,3.67055885,2941.9,2940.5,3.48821176]
[1769325483002,1.996,2942.1,2940.5,3.48821176]
[1769325483296,4.13812871,2942.0,2940.5,3.48821176]
[1769325483498,1.996,2942.1,2940.5,3.48821176]
[1769325483696,4.13812879,2942.0,2940.5,3.48821176]
[1769325483898,1.996,2942.1,2940.5,3.48821176]
[1769325484102,4.13812879,2942.0,2940.5,3.48821176]
[1769325484301,1.996,2942.1,2940.5,3.48821176]
[1769325484597,4.13813742,2942.0,2940.5,3.48821176]
[1769325484794,5.59036201,2942.1,2940.5,3.48821176]
[1769325484997,4.13813721,2942.0,2940.5,3.48821176]
[1769325485199,5.59036201,2942.1,2940.5,3.48821176]
[1769325485394,4.13814779,2942.0,2940.5,3.48821176]
[1769325485692,5.59036201,2942.1,2940.5,3.48821176]
[1769325485892,4.13814754,2942.0,2940.5,3.48821176]
[1769325486096,5.59036201,2942.1,2940.5,3.48821176]
[1769325486300,4.13814488,2942.0,2940.5,3.48821176]
[1769325486599,5.59036201,2942.1,2940.5,3.48821176]
[1769325486800,4.13814086,2942.0,2940.5,3.48821176]
[1769325486994,5.59036201,2942.1,2940.5,3.48821176]
[1769325487190,4.13813456,2942.0,2940.5,3.48821176]
[1769325487401,5.59036201,2942.1,2940.5,3.48821176]
[1769325487601,4.13820417,2942.0,2940.5,3.48821176]
[1769325487901,5.59036201,2942.1,2940.5,3.48821176]
[1769325488101,4.13819719,2942.0,2940.5,3.48821176]
[1769325488301,5.59036201,2942.1,2940.5,3.48821176]
[1769325488501,4.13828316,2942.0,2940.5,3.48821176]
[1769325488693,5.59036201,2942.1,2940.5,3.48821176]
[1769325488893,4.13828316,2942.0,2940.5,3.48821176]
[1769325489102,5.59036201,2942.1,2940.5,3.48821176]
[1769325489301,4.13827327,2942.0,2940.5,3.48821176]
[1769325489500,3.59436201,2942.0,2940.5,3.48821176]
[1769325490395,4.38054784,2942.0,2940.5,3.48821176]
[1769325490900,0.78631383,2941.7,2940.5,3.48821176]
[1769325494505,3.59436201,2942.0,2940.5,3.48821176]
[1769325494706,0.78631383,2941.8,2940.5,3.48821176]
[1769325502608,0.78631383,2941.6,2940.5,3.48821176]
[1769325503411,0.78631383,2941.4,2940.3,2.131]
[1769325508412,0.78631383,2941.0,2940.1,0.00307172]
[1769325508618,0.78631383,2941.2,2940.1,0.00307172]
[1769325508817,4.28662455,2941.4,2940.1,0.00307172]
[1769325509418,4.28662455,2941.4,2940.1,3.52951389]
[1769325511308,0.78631383,2941.4,2940.1,3.52951389]
[1769325511513,0.78631383,2941.4,2940.3,3.52644217]
[1769325515022,0.78631383,2941.2,2940.1,0.00307172]
[1769325533144,4.45916066,2941.2,2940.1,0.00307172]
[1769325550860,3.67284683,2941.2,2940.1,0.00307172]
[1769325577580,3.67284683,2941.2,2939.4,12.30647852]
[1769325577876,3.67284683,2941.2,2939.4,3.47931166]
[1769325578377,3.67284683,2941.2,2939.4,3.48257143]
[1769325578577,3.67284683,2941.2,2939.4,3.42337341]
[1769325578777,3.57662798,2941.0,2939.4,3.42337341]
[1769325579478,3.57662798,2941.0,2939.4,0.00325977]
[1769325595694,3.57662798,2940.8,2939.4,0.00325977]
[1769325597189,5.57362798,2940.8,2939.4,0.00325977]
[1769325597396,5.57362798,2940.8,2938.7,3.42011364]
[1769325597397,3.57662798,2940.4,2938.7,3.42011364]
[1769325598304,3.57662798,2940.4,2938.7,3.42359041]
[1769325602000,3.57662798,2940.4,2938.7,4.21013725]
[1769325607905,3.57662798,2940.4,2938.7,4.38053725]
[1769325608605,3.57662798,2940.4,2938.8,2.85758876]
[1769325610901,3.57662798,2940.4,2939.4,0.78686079]
[1769325617307,3.51468813,2940.8,2939.6,0.78686079]
[1769325617608,4.11997663,2940.7,2939.6,0.78686079]
[1769325617808,3.51468813,2940.8,2939.6,0.78686079]
[1769325618010,4.11997852,2940.7,2939.6,0.78686079]
[1769325618210,3.51468813,2940.8,2939.6,0.78686079]
[1769325618409,4.12038912,2940.7,2939.6,0.78686079]
[1769325618716,3.51468813,2940.8,2939.6,0.78686079]
[1769325619015,4.12036896,2940.7,2939.6,0.78686079]
[1769325619315,3.51468813,2940.8,2939.6,0.78686079]
[1769325619511,4.12093541,2940.7,2939.6,0.78686079]
[1769325619711,3.51468813,2940.8,2939.6,0.78686079]
[1769325620009,6.84876275,2940.7,2939.6,0.78686079]
[1769325620206,2.72782734,2940.7,2939.6,0.78686079]
[1769325625210,4.12551838,2940.6,2939.6,0.78686079]
[1769325625410,2.72782734,2940.7,2939.6,0.78686079]
[1769325625710,4.12554018,2940.6,2939.6,0.78686079]
[1769325625916,2.72782734,2940.7,2939.6,0.78686079]
[1769325626111,4.12553912,2940.6,2939.6,0.78686079]
[1769325626315,2.72782734,2940.7,2939.6,0.78686079]
[1769325626517,4.12605724,2940.6,2939.6,0.78686079]
[1769325626728,2.72782734,2940.7,2939.6,0.78686079]
[1769325627019,4.12605724,2940.6,2939.6,0.78686079]
[1769325627215,2.72782734,2940.7,2939.6,0.78686079]
[1769325627417,4.12653974,2940.6,2939.6,0.78686079]
[1769325627717,2.72782734,2940.7,2939.6,0.78686079]
[1769325627912,4.12653843,2940.6,2939.6,0.78686079]
[1769325628114,2.72782734,2940.7,2939.6,0.78686079]
[1769325628315,4.12654939,2940.6,2939.6,0.78686079]
[1769325628517,2.72782734,2940.7,2939.6,0.78686079]
[1769325628719,4.12655024,2940.6,2939.6,0.78686079]
[1769325629017,2.72782734,2940.7,2939.6,0.78686079]
[1769325629220,4.12659016,2940.6,2939.6,0.78686079]
[1769325629413,2.72782734,2940.7,2939.6,0.78686079]
[1769325629617,4.12638156,2940.6,2939.6,0.78686079]
[1769325629912,2.72782734,2940.7,2939.6,0.78686079]
[1769325630216,4.12613477,2940.6,2939.6,0.78686079]
[1769325630417,2.72782734,2940.7,2939.6,0.78686079]
[1769325630615,4.12612144,2940.6,2939.6,0.78686079]
[1769325630810,2.72782734,2940.7,2939.6,0.78686079]
[1769325631023,4.12612061,2940.6,2939.6,0.78686079]
[1769325631321,2.72782734,2940.7,2939.6,0.78686079]
[1769325631522,4.12617691,2940.6,2939.6,0.78686079]
[1769325631715,2.72782734,2940.7,2939.6,0.78686079]
[1769325631915,4.12617578,2940.6,2939.6,0.78686079]
[1769325632120,2.72782734,2940.7,2939.6,0.78686079]
[1769325632323,4.12624642,2940.6,2939.6,0.78686079]
[1769325632525,2.72782734,2940.7,2939.6,0.78686079]
[1769325632714,4.126368,2940.6,2939.6,0.78686079]
[1769325632918,2.72782734,2940.7,2939.6,0.78686079]
[1769325633118,4.12636746,2940.6,2939.6,0.78686079]
[1769325633415,2.72782734,2940.7,2939.6,0.78686079]
[1769325633615,4.12636896,2940.6,2939.6,0.78686079]
[1769325633918,2.72782734,2940.7,2939.6,0.78686079]
[1769325635225,2.50859102,2941.0,2940.0,0.78686079]
[1769325636016,2.50859102,2941.0,2939.8,0.78686079]
[1769325659861,2.50859102,2940.9,2939.6,0.78686079]
[1769325660160,3.29545181,2940.8,2939.6,0.78686079]
[1769325660661,2.50859102,2940.7,2939.6,0.78686079]
[1769325662850,2.50859102,2940.7,2939.8,0.78686079]
[1769325664556,2.50859102,2940.7,2939.6,0.78686079]
[1769325669768,2.50859102,2940.7,2939.8,0.78686079]
[1769325670972,2.28107289,2941.1,2939.8,0.78686079]
[1769325671172,4.12310002,2941.0,2939.8,0.78686079]
[1769325671372,2.28107289,2941.1,2939.8,0.78686079]
[1769325671574,6.4041707,2941.0,2939.8,0.78686079]
[1769325671872,2.28107289,2941.0,2939.8,0.78686079]
[1769325672767,2.28107289,2941.0,2940.0,0.78686079]
[1769325672967,2.28107289,2941.0,2939.7,2.15904813]
[1769325690176,2.002,2941.6,2939.7,2.15904813]
[1769325690481,2.03164061,2941.4,2939.7,2.15904813]
[1769325690670,2.03164061,2941.3,2939.7,2.15904813]
[1769325699892,2.03164061,2941.3,2940.0,0.78648568]
[1769325700084,2.03164061,2941.3,2940.1,2.168]
[1769325701786,1.88158669,2942.0,2940.2,1.8560068]
[1769325702091,1.88158669,2942.0,2940.4,2.64249248]
[1769325710900,1.88158669,2942.0,2940.3,1.997]
[1769325714603,1.88158669,2942.0,2940.3,3.8530068]
[1769325715299,1.88158669,2942.0,2940.4,1.8560068]
[1769325721406,1.88158669,2942.0,2940.5,1.8560068]
[1769325721709,0.00399594,2942.4,2940.7,2.0262868]
[1769325721710,1.88558263,2942.4,2940.7,2.0262868]
[1769325722606,1.88558263,2942.4,2940.8,2.64249248]
[1769325722807,1.88558263,2942.4,2940.8,2.64508641]
[1769325723212,1.88558263,2942.4,2940.9,1.46947098]
[1769325734313,0.00399594,2942.4,2940.9,1.46947098]
[1769325735014,0.00399594,2942.4,2941.3,0.78582093]